[Event "*** Titled Tuesday Blitz"]
[Site "Chess.com"]
[Date "2020.04.07"]
[Round "4"]
[White "eightbyeightchess"]
[Black "MixMasterChess"]
[Result "1-0"]
[WhiteElo "2346"]
[BlackElo "2098"]
[TimeControl "180+1"]
[EndTime "13:41:51 PDT"]
[Termination "eightbyeightchess won on time"]

1. e4 {[%clk 0:02:59.6]} 1... e6 {[%clk 0:03:00.3]} 2. d4 {[%clk 0:02:56.9]}
2... d5 {[%clk 0:03:00.8]} 3. e5 {[%clk 0:02:54.7]} 3... c5 {[%clk 0:03:00.5]}
4. c3 {[%clk 0:02:53.8]} 4... Nc6 {[%clk 0:03:00.9]} 5. Nf3 {[%clk 0:02:53.4]}
5... Bd7 {[%clk 0:03:01.5]} 6. Bd3 {[%clk 0:02:51.1]} 6... cxd4 {[%clk
0:03:00.8]} 7. cxd4 {[%clk 0:02:52]} 7... Qb6 {[%clk 0:03:01.5]} 8. O-O {[%clk
0:02:48.4]} 8... Nxd4 {[%clk 0:03:02]} 9. Nxd4 {[%clk 0:02:49.3]} 9... Qxd4
{[%clk 0:03:02.9]} 10. Qb3 {[%clk 0:02:34.6]} 10... Rb8 {[%clk 0:02:43.6]} 11.
Be3 {[%clk 0:02:33.7]} 11... Qxe5 {[%clk 0:02:23]} 12. Bxa7 {[%clk 0:02:33.5]}
12... Rc8 {[%clk 0:02:11.2]} 13. Qxb7 {[%clk 0:02:28.1]} 13... Qc7 {[%clk
0:02:10.7]} 14. Qxc7 {[%clk 0:02:24.6]} 14... Rxc7 {[%clk 0:02:10.8]} 15. Bd4
{[%clk 0:02:21]} 15... Nf6 {[%clk 0:02:06.8]} 16. Be5 {[%clk 0:02:05.2]} 16...
Ra7 {[%clk 0:02:00]} 17. Nc3 {[%clk 0:01:56.8]} 17... Bc5 {[%clk 0:01:58.8]} 18.
Nb5 {[%clk 0:01:49.6]} 18... Ra4 {[%clk 0:01:34.6]} 19. b3 {[%clk 0:01:44.9]}
19... Rb4 {[%clk 0:01:24.8]} 20. Rfc1 {[%clk 0:00:58.7]} 20... Bxf2+ {[%clk
0:01:23.4]} 21. Kf1 {[%clk 0:00:49.4]} 21... Bb6 {[%clk 0:01:02]} 22. Nd6+
{[%clk 0:00:44.3]} 22... Ke7 {[%clk 0:01:01.5]} 23. Nb7 {[%clk 0:00:40.4]} 23...
Ne4 {[%clk 0:00:49.5]} 24. Bc7 {[%clk 0:00:23]} 24... Bd4 {[%clk 0:00:42.7]} 25.
Bxe4 {[%clk 0:00:20.7]} 25... Rxb7 {[%clk 0:00:38.6]} 26. Bxd5 {[%clk
0:00:18.3]} 26... exd5 {[%clk 0:00:34.1]} 27. Re1+ {[%clk 0:00:18.7]} 27... Be6
{[%clk 0:00:33.9]} 28. Rac1 {[%clk 0:00:18.9]} 28... Rc8 {[%clk 0:00:31]} 29.
Bg3 {[%clk 0:00:17.5]} 29... Rxc1 {[%clk 0:00:28.5]} 30. Rxc1 {[%clk 0:00:18.4]}
30... Kd7 {[%clk 0:00:29]} 31. Rd1 {[%clk 0:00:17.6]} 31... Bf6 {[%clk
0:00:26.9]} 32. h3 {[%clk 0:00:18]} 32... Ra7 {[%clk 0:00:25.7]} 33. a4 {[%clk
0:00:18.2]} 33... Rb7 {[%clk 0:00:25.7]} 34. Rc1 {[%clk 0:00:18.4]} 34... Bd8
{[%clk 0:00:23.5]} 35. Rc3 {[%clk 0:00:17.5]} 35... Ba5 {[%clk 0:00:21.5]} 36.
Rd3 {[%clk 0:00:17.3]} 36... Ke7 {[%clk 0:00:20.1]} 37. Bf2 {[%clk 0:00:16.2]}
37... Bb6 {[%clk 0:00:19]} 38. Be1 {[%clk 0:00:15.4]} 38... Bc5 {[%clk
0:00:18.7]} 39. b4 {[%clk 0:00:15.2]} 39... Bxb4 {[%clk 0:00:18.7]} 40. Rb3
{[%clk 0:00:15.2]} 40... d4 {[%clk 0:00:15.9]} 41. Rxb4 {[%clk 0:00:13.8]} 41...
Rxb4 {[%clk 0:00:16.8]} 42. Bxb4+ {[%clk 0:00:14.4]} 42... Kd7 {[%clk
0:00:16.9]} 43. Bc5 {[%clk 0:00:14.6]} 43... d3 {[%clk 0:00:15.4]} 44. Bd4
{[%clk 0:00:15]} 44... g6 {[%clk 0:00:14.3]} 45. Ke1 {[%clk 0:00:15.5]} 45...
Kc6 {[%clk 0:00:14.6]} 46. Kd2 {[%clk 0:00:15.6]} 46... Bc4 {[%clk 0:00:15.1]}
47. Kc3 {[%clk 0:00:15.4]} 47... Ba6 {[%clk 0:00:15.6]} 48. Be3 {[%clk
0:00:15.1]} 48... Kd5 {[%clk 0:00:15.6]} 49. Bd2 {[%clk 0:00:14.4]} 49... Ke4
{[%clk 0:00:15.8]} 50. Kb4 {[%clk 0:00:14.5]} 50... Kd5 {[%clk 0:00:04.9]} 51.
Ka5 {[%clk 0:00:13.9]} 51... Bc8 {[%clk 0:00:03.8]} 52. Kb6 {[%clk 0:00:14]}
52... Kc4 {[%clk 0:00:02.5]} 53. a5 {[%clk 0:00:14.1]} 53... Be6 {[%clk
0:00:02.1]} 54. a6 {[%clk 0:00:12.5]} 54... Bd5 {[%clk 0:00:02.2]} 55. g3 {[%clk
0:00:12.7]} 55... Kb3 {[%clk 0:00:01.5]} 56. Kc5 {[%clk 0:00:13.1]} 56... Bg2
{[%clk 0:00:01.1]} 57. Kd4 {[%clk 0:00:11.4]} 57... Kc2 {[%clk 0:00:01.2]} 58.
Ke3 {[%clk 0:00:11.2]} 1-0

[Event "*** Titled Tuesday Blitz"]
[Site "Chess.com"]
[Date "2020.04.07"]
[Round "4"]
[White "Teidi96"]
[Black "Lony7"]
[Result "0-1"]
[WhiteElo "2217"]
[BlackElo "2456"]
[TimeControl "180+1"]
[EndTime "13:41:52 PDT"]
[Termination "Lony7 won by resignation"]

1. e4 {[%clk 0:03:00.9]} 1... e6 {[%clk 0:03:00]} 2. d4 {[%clk 0:03:00.5]} 2...
d5 {[%clk 0:03:00.9]} 3. Nd2 {[%clk 0:03:01]} 3... c5 {[%clk 0:03:00.8]} 4. exd5
{[%clk 0:03:00.9]} 4... Qxd5 {[%clk 0:03:01.7]} 5. Ngf3 {[%clk 0:03:00.2]} 5...
cxd4 {[%clk 0:03:02.1]} 6. Bc4 {[%clk 0:03:00.9]} 6... Qd7 {[%clk 0:03:02.6]} 7.
Qe2 {[%clk 0:02:59.4]} 7... Nc6 {[%clk 0:03:02]} 8. Nb3 {[%clk 0:02:57.5]} 8...
a6 {[%clk 0:02:59.6]} 9. a4 {[%clk 0:02:54.2]} 9... Qc7 {[%clk 0:02:48.4]} 10.
O-O {[%clk 0:02:51.4]} 10... Bd6 {[%clk 0:02:47.9]} 11. h3 {[%clk 0:02:46.5]}
11... Nge7 {[%clk 0:02:42.5]} 12. Nbxd4 {[%clk 0:02:44.7]} 12... Nxd4 {[%clk
0:02:37.9]} 13. Nxd4 {[%clk 0:02:45.6]} 13... O-O {[%clk 0:02:38.3]} 14. Be3
{[%clk 0:02:38.9]} 14... Ng6 {[%clk 0:02:27.8]} 15. Rfd1 {[%clk 0:02:20.5]}
15... b6 {[%clk 0:02:18.3]} 16. Bd3 {[%clk 0:01:49.6]} 16... Bb7 {[%clk
0:02:17.4]} 17. Bxg6 {[%clk 0:01:32.5]} 17... hxg6 {[%clk 0:02:16.9]} 18. Rd2
{[%clk 0:01:26.2]} 18... Rfd8 {[%clk 0:01:28.2]} 19. Rad1 {[%clk 0:01:24.8]}
19... Be7 {[%clk 0:01:26.6]} 20. Nf3 {[%clk 0:01:15.5]} 20... Bd5 {[%clk
0:01:16.1]} 21. b3 {[%clk 0:01:08.6]} 21... Bb4 {[%clk 0:01:10.2]} 22. Rd3
{[%clk 0:00:57.1]} 22... Rac8 {[%clk 0:01:00.6]} 23. c4 {[%clk 0:00:52.1]} 23...
Bb7 {[%clk 0:00:54.5]} 24. Bg5 {[%clk 0:00:34]} 24... Rxd3 {[%clk 0:00:51]} 25.
Qxd3 {[%clk 0:00:33.6]} 25... f6 {[%clk 0:00:36.1]} 26. Bh4 {[%clk 0:00:31.9]}
26... g5 {[%clk 0:00:34.1]} 27. Bg3 {[%clk 0:00:31.6]} 27... Qe7 {[%clk
0:00:31.1]} 28. Qd7 {[%clk 0:00:29.2]} 28... Qxd7 {[%clk 0:00:30.6]} 29. Rxd7
{[%clk 0:00:30.1]} 29... Bxf3 {[%clk 0:00:28.8]} 30. gxf3 {[%clk 0:00:31]} 30...
e5 {[%clk 0:00:28.7]} 31. h4 {[%clk 0:00:27.8]} 31... gxh4 {[%clk 0:00:27.2]}
32. Bxh4 {[%clk 0:00:28]} 32... Rc6 {[%clk 0:00:20.3]} 33. Bg3 {[%clk
0:00:19.8]} 33... Rd6 {[%clk 0:00:19.4]} 34. Rxd6 {[%clk 0:00:17]} 34... Bxd6
{[%clk 0:00:20.3]} 35. Kg2 {[%clk 0:00:12]} 35... Kf7 {[%clk 0:00:19.9]} 36. Kh3
{[%clk 0:00:11.8]} 36... g5 {[%clk 0:00:19.2]} 37. Kg4 {[%clk 0:00:11.6]} 37...
Kg6 {[%clk 0:00:19.4]} 38. Bh2 {[%clk 0:00:10.4]} 38... Bc5 {[%clk 0:00:19]} 39.
Kg3 {[%clk 0:00:09.3]} 39... a5 {[%clk 0:00:16.6]} 40. f4 {[%clk 0:00:07.5]}
40... gxf4+ {[%clk 0:00:14.4]} 41. Kg4 {[%clk 0:00:06.1]} 41... Bxf2 {[%clk
0:00:10.7]} 42. Kf3 {[%clk 0:00:06.1]} 42... Bc5 {[%clk 0:00:10.9]} 43. Ke4
{[%clk 0:00:05.9]} 43... Kg5 {[%clk 0:00:11.4]} 44. Kf3 {[%clk 0:00:03.7]} 44...
f5 {[%clk 0:00:09.3]} 45. Kg2 {[%clk 0:00:03.7]} 45... Kg4 {[%clk 0:00:09.4]}
46. Kf1 {[%clk 0:00:03.4]} 46... Bd4 {[%clk 0:00:07.3]} 47. Bg1 {[%clk
0:00:03.4]} 47... Bxg1 {[%clk 0:00:07]} 48. Kxg1 {[%clk 0:00:04.3]} 48... Kf3
{[%clk 0:00:07.6]} 49. b4 {[%clk 0:00:04.2]} 49... axb4 {[%clk 0:00:07.1]} 50.
c5 {[%clk 0:00:04.4]} 50... b3 {[%clk 0:00:06.9]} 51. c6 {[%clk 0:00:03.8]}
51... b2 {[%clk 0:00:07.4]} 52. c7 {[%clk 0:00:04]} 52... b1=Q+ {[%clk
0:00:06.9]} 53. Kh2 {[%clk 0:00:04.5]} 53... Qc2+ {[%clk 0:00:07.4]} 54. Kh3
{[%clk 0:00:05]} 54... Qg2+ {[%clk 0:00:07.7]} 0-1

[Event "*** Titled Tuesday Blitz"]
[Site "Chess.com"]
[Date "2020.04.07"]
[Round "4"]
[White "Bryakin_Mikhail"]
[Black "enriquetejedor"]
[Result "0-1"]
[WhiteElo "2740"]
[BlackElo "2569"]
[TimeControl "180+1"]
[EndTime "13:41:53 PDT"]
[Termination "enriquetejedor won by resignation"]

1. d4 {[%clk 0:03:00.9]} 1... Nf6 {[%clk 0:02:59.8]} 2. c4 {[%clk 0:02:57.8]}
2... c5 {[%clk 0:02:56.8]} 3. d5 {[%clk 0:02:57.4]} 3... b5 {[%clk 0:02:56.5]}
4. cxb5 {[%clk 0:02:58.3]} 4... a6 {[%clk 0:02:56.6]} 5. e3 {[%clk 0:02:58.9]}
5... g6 {[%clk 0:02:52.7]} 6. Nc3 {[%clk 0:02:58.3]} 6... Bg7 {[%clk 0:02:53.1]}
7. Nf3 {[%clk 0:02:57.3]} 7... O-O {[%clk 0:02:53.4]} 8. e4 {[%clk 0:02:57.9]}
8... d6 {[%clk 0:02:52.2]} 9. a4 {[%clk 0:02:58.5]} 9... axb5 {[%clk 0:02:42.2]}
10. Bxb5 {[%clk 0:02:56.3]} 10... Ba6 {[%clk 0:02:41.3]} 11. Bd2 {[%clk
0:02:49.9]} 11... Nbd7 {[%clk 0:02:35.8]} 12. O-O {[%clk 0:02:49.2]} 12... Ne8
{[%clk 0:02:33.9]} 13. Qc2 {[%clk 0:02:37.7]} 13... Nc7 {[%clk 0:02:30.5]} 14.
Bxa6 {[%clk 0:02:38]} 14... Rxa6 {[%clk 0:02:26.4]} 15. Rfe1 {[%clk 0:02:37.1]}
15... Qa8 {[%clk 0:02:21.5]} 16. Bf4 {[%clk 0:02:32.2]} 16... Rb8 {[%clk
0:02:21.4]} 17. Rad1 {[%clk 0:02:22.1]} 17... Rab6 {[%clk 0:02:21]} 18. Re2
{[%clk 0:02:20.7]} 18... Rxb2 {[%clk 0:02:19.8]} 19. Qxb2 {[%clk 0:02:05]} 19...
Rxb2 {[%clk 0:02:17.6]} 20. Rxb2 {[%clk 0:02:05.9]} 20... Bxc3 {[%clk
0:02:17.8]} 21. Ra2 {[%clk 0:02:06.5]} 21... Nb6 {[%clk 0:01:59.9]} 22. a5
{[%clk 0:02:04.8]} 22... Nd7 {[%clk 0:01:48.8]} 23. Rc1 {[%clk 0:01:52]} 23...
Bb4 {[%clk 0:01:44.3]} 24. Nd4 {[%clk 0:01:52.2]} 24... Nxd5 {[%clk 0:01:39.4]}
25. exd5 {[%clk 0:01:49.3]} 25... Qxd5 {[%clk 0:01:33]} 26. Raa1 {[%clk
0:01:44.2]} 26... Qxd4 {[%clk 0:01:28.8]} 27. Be3 {[%clk 0:01:44.6]} 27... Qd5
{[%clk 0:01:27.5]} 28. a6 {[%clk 0:01:45.5]} 28... Qa8 {[%clk 0:01:26.8]} 29. a7
{[%clk 0:01:42.6]} 29... Nb6 {[%clk 0:01:25.8]} 30. Rcb1 {[%clk 0:01:33.5]}
30... Nc8 {[%clk 0:01:22.7]} 31. Ra6 {[%clk 0:01:28.8]} 31... Nxa7 {[%clk
0:00:59.8]} 32. Rba1 {[%clk 0:01:23.1]} 32... Qe4 {[%clk 0:00:46.5]} 33. Rxa7
{[%clk 0:01:22.2]} 33... Kg7 {[%clk 0:00:46.6]} 34. h3 {[%clk 0:00:59.7]} 34...
d5 {[%clk 0:00:33.5]} 35. Rd7 {[%clk 0:00:49.2]} 35... d4 {[%clk 0:00:24.4]} 36.
Bg5 {[%clk 0:00:49.4]} 36... f6 {[%clk 0:00:23.4]} 37. Raa7 {[%clk 0:00:46.9]}
37... Kf7 {[%clk 0:00:21.1]} 38. Bf4 {[%clk 0:00:38.8]} 38... c4 {[%clk
0:00:17.2]} 39. g3 {[%clk 0:00:38.9]} 39... c3 {[%clk 0:00:15.2]} 40. Rab7
{[%clk 0:00:39.4]} 40... c2 {[%clk 0:00:14.1]} 41. Kh2 {[%clk 0:00:33.3]} 41...
Ba3 {[%clk 0:00:07.4]} 42. Rbc7 {[%clk 0:00:26.3]} 42... d3 {[%clk 0:00:05.1]}
43. Be3 {[%clk 0:00:24.1]} 43... g5 {[%clk 0:00:02.7]} 44. g4 {[%clk 0:00:16]}
44... Qe5+ {[%clk 0:00:02.8]} 45. Kg2 {[%clk 0:00:15.8]} 45... Qe4+ {[%clk
0:00:03.7]} 46. Kg1 {[%clk 0:00:14]} 46... Bb4 {[%clk 0:00:03.1]} 47. Kh2 {[%clk
0:00:09.9]} 47... d2 {[%clk 0:00:03.5]} 48. Bxd2 {[%clk 0:00:04.7]} 48... Bxd2
{[%clk 0:00:03.6]} 49. Rxe7+ {[%clk 0:00:04.5]} 49... Qxe7 {[%clk 0:00:03.5]}
50. Rxc2 {[%clk 0:00:05.4]} 50... Qe4 {[%clk 0:00:02.6]} 51. Kg1 {[%clk
0:00:06.3]} 51... Qxc2 {[%clk 0:00:02.5]} 52. Kg2 {[%clk 0:00:06.9]} 52... Be3
{[%clk 0:00:02.6]} 0-1

[Event "*** Titled Tuesday Blitz"]
[Site "Chess.com"]
[Date "2020.04.07"]
[Round "4"]
[White "Federtiu"]
[Black "OparinGrigoriy"]
[Result "0-1"]
[WhiteElo "2686"]
[BlackElo "2979"]
[TimeControl "180+1"]
[EndTime "13:41:56 PDT"]
[Termination "OparinGrigoriy won by resignation"]

1. g3 {[%clk 0:02:59.1]} 1... d5 {[%clk 0:02:59.3]} 2. Bg2 {[%clk 0:03:00]} 2...
e5 {[%clk 0:02:59.7]} 3. d3 {[%clk 0:03:00.2]} 3... Nf6 {[%clk 0:03:00.1]} 4.
Nf3 {[%clk 0:03:00.7]} 4... Bd6 {[%clk 0:03:00.2]} 5. O-O {[%clk 0:03:01.3]}
5... O-O {[%clk 0:03:00]} 6. Nc3 {[%clk 0:03:01.9]} 6... c6 {[%clk 0:03:00.4]}
7. e4 {[%clk 0:03:02.5]} 7... Nbd7 {[%clk 0:02:59.5]} 8. Nh4 {[%clk 0:02:41.3]}
8... Nb6 {[%clk 0:02:49.4]} 9. h3 {[%clk 0:02:34.3]} 9... h6 {[%clk 0:02:48.9]}
10. Kh2 {[%clk 0:01:57.1]} 10... Re8 {[%clk 0:02:48.1]} 11. Qf3 {[%clk
0:01:54.9]} 11... Bf8 {[%clk 0:02:45.5]} 12. Nf5 {[%clk 0:01:49.5]} 12... Kh7
{[%clk 0:02:45.6]} 13. g4 {[%clk 0:01:46.8]} 13... g6 {[%clk 0:02:44.3]} 14. Ng3
{[%clk 0:01:43.4]} 14... Qd6 {[%clk 0:02:37.6]} 15. a4 {[%clk 0:01:36]} 15... a5
{[%clk 0:02:32.4]} 16. exd5 {[%clk 0:01:36.2]} 16... cxd5 {[%clk 0:02:28.5]} 17.
Nb5 {[%clk 0:01:36.1]} 17... Qd8 {[%clk 0:02:29.1]} 18. Be3 {[%clk 0:01:24.7]}
18... Bg7 {[%clk 0:02:25.8]} 19. Rfe1 {[%clk 0:01:23.3]} 19... Re6 {[%clk
0:02:08.4]} 20. b3 {[%clk 0:01:09.2]} 20... Bd7 {[%clk 0:02:01.8]} 21. c4 {[%clk
0:01:06]} 21... d4 {[%clk 0:02:01.3]} 22. Bd2 {[%clk 0:01:05.3]} 22... Bc6
{[%clk 0:02:01.6]} 23. Qe2 {[%clk 0:01:00.6]} 23... Nbd7 {[%clk 0:02:02.1]} 24.
Qf1 {[%clk 0:00:50.4]} 24... Nc5 {[%clk 0:02:00.6]} 25. Rab1 {[%clk 0:00:47.3]}
25... Bxg2 {[%clk 0:01:57.1]} 26. Kxg2 {[%clk 0:00:47.3]} 26... Qd7 {[%clk
0:01:56.4]} 27. f4 {[%clk 0:00:37.9]} 27... Qc6+ {[%clk 0:01:52.3]} 28. Kh2
{[%clk 0:00:35.9]} 28... Rae8 {[%clk 0:01:34.9]} 29. fxe5 {[%clk 0:00:34.6]}
29... Rxe5 {[%clk 0:01:30.7]} 30. Rxe5 {[%clk 0:00:30.2]} 30... Rxe5 {[%clk
0:01:31.6]} 31. Nxd4 {[%clk 0:00:30.7]} 31... Qd6 {[%clk 0:01:20.1]} 32. Nb5
{[%clk 0:00:13.8]} 32... Qxd3 {[%clk 0:01:18.6]} 33. Qxd3 {[%clk 0:00:12.8]}
33... Nxd3 {[%clk 0:01:19.5]} 34. Bxa5 {[%clk 0:00:13.2]} 34... Ne4 {[%clk
0:01:13.8]} 35. Rd1 {[%clk 0:00:11.1]} 35... Ndc5 {[%clk 0:00:39.8]} 36. Bc7
{[%clk 0:00:10.9]} 36... Re7 {[%clk 0:00:37.5]} 37. Nxe4 {[%clk 0:00:06.3]}
37... Rxe4 {[%clk 0:00:36.7]} 38. Bb6 {[%clk 0:00:03.3]} 38... Nxb3 {[%clk
0:00:32.2]} 39. Rd7 {[%clk 0:00:03.3]} 39... Rxc4 {[%clk 0:00:18.1]} 40. a5
{[%clk 0:00:03.6]} 40... Rb4 {[%clk 0:00:14.1]} 41. Nd6 {[%clk 0:00:02.3]} 41...
Be5+ {[%clk 0:00:14.3]} 42. Kg2 {[%clk 0:00:02.4]} 42... Bxd6 {[%clk 0:00:14]}
43. Rxd6 {[%clk 0:00:03.3]} 43... Rb5 {[%clk 0:00:11.6]} 44. Rd7 {[%clk
0:00:02.7]} 44... Kg8 {[%clk 0:00:11.8]} 45. Rd8+ {[%clk 0:00:01.4]} 45... Kg7
{[%clk 0:00:11.1]} 46. Ra8 {[%clk 0:00:01.7]} 46... g5 {[%clk 0:00:08.1]} 47.
Ra7 {[%clk 0:00:01.5]} 47... Kg6 {[%clk 0:00:08.1]} 48. Kf3 {[%clk 0:00:02.2]}
48... f5 {[%clk 0:00:07.6]} 49. gxf5+ {[%clk 0:00:01.6]} 49... Rxf5+ {[%clk
0:00:08.5]} 50. Ke3 {[%clk 0:00:02]} 50... Rf7 {[%clk 0:00:09.1]} 51. Kd3 {[%clk
0:00:01.9]} 51... h5 {[%clk 0:00:09.3]} 52. Kc4 {[%clk 0:00:02.1]} 52... Nd2+
{[%clk 0:00:09.6]} 53. Kd5 {[%clk 0:00:02.7]} 53... g4 {[%clk 0:00:09.1]} 54.
hxg4 {[%clk 0:00:03.6]} 54... hxg4 {[%clk 0:00:10]} 55. Ra8 {[%clk 0:00:04.2]}
55... Kf5 {[%clk 0:00:09.9]} 56. Re8 {[%clk 0:00:01.6]} 56... Nf3 {[%clk
0:00:09.9]} 57. Rg8 {[%clk 0:00:01.4]} 57... Rd7+ {[%clk 0:00:09.6]} 58. Kc4
{[%clk 0:00:01.4]} 58... Ne5+ {[%clk 0:00:10]} 59. Kb5 {[%clk 0:00:01.8]} 59...
Ng6 {[%clk 0:00:09.6]} 60. Re8 {[%clk 0:00:01.2]} 60... g3 {[%clk 0:00:09.6]}
61. Re3 {[%clk 0:00:01.3]} 61... g2 {[%clk 0:00:09.8]} 62. Rg3 {[%clk
0:00:01.4]} 62... Nf4 {[%clk 0:00:10.1]} 63. Be3 {[%clk 0:00:01.5]} 63... Rd3
{[%clk 0:00:10.2]} 64. Rf3 {[%clk 0:00:01.5]} 64... Rxe3 {[%clk 0:00:10.4]} 0-1

[Event "*** Titled Tuesday Blitz"]
[Site "Chess.com"]
[Date "2020.04.07"]
[Round "4"]
[White "arctic_t00"]
[Black "nfds"]
[Result "1-0"]
[WhiteElo "2404"]
[BlackElo "2574"]
[TimeControl "180+1"]
[EndTime "13:41:57 PDT"]
[Termination "arctic_t00 won by resignation"]

1. Nf3 {[%clk 0:03:00.9]} 1... Nf6 {[%clk 0:02:57.2]} 2. c4 {[%clk 0:03:00.9]}
2... e6 {[%clk 0:02:54.3]} 3. d4 {[%clk 0:03:00.4]} 3... Bb4+ {[%clk 0:02:09.2]}
4. Nbd2 {[%clk 0:02:59.7]} 4... O-O {[%clk 0:02:06.8]} 5. a3 {[%clk 0:02:58.9]}
5... Be7 {[%clk 0:02:01.8]} 6. e4 {[%clk 0:02:57.7]} 6... d6 {[%clk 0:01:59.9]}
7. Bd3 {[%clk 0:02:56.1]} 7... c5 {[%clk 0:01:58]} 8. O-O {[%clk 0:02:53.9]}
8... cxd4 {[%clk 0:01:54.1]} 9. Nxd4 {[%clk 0:02:53.2]} 9... b6 {[%clk
0:01:52.5]} 10. b4 {[%clk 0:02:47.5]} 10... Bb7 {[%clk 0:01:51.1]} 11. Bb2
{[%clk 0:02:47.2]} 11... Nbd7 {[%clk 0:01:44.1]} 12. N4f3 {[%clk 0:02:45.6]}
12... Ng4 {[%clk 0:01:41.7]} 13. h3 {[%clk 0:02:31.2]} 13... Bf6 {[%clk
0:01:40.9]} 14. Bxf6 {[%clk 0:02:11.7]} 14... Ngxf6 {[%clk 0:01:41.8]} 15. Re1
{[%clk 0:02:01.3]} 15... a5 {[%clk 0:01:24.7]} 16. Qb3 {[%clk 0:01:57]} 16...
Qc7 {[%clk 0:01:21]} 17. Rab1 {[%clk 0:01:44.6]} 17... Rfd8 {[%clk 0:01:13.6]}
18. Nd4 {[%clk 0:01:39]} 18... axb4 {[%clk 0:01:08.3]} 19. axb4 {[%clk
0:01:32.6]} 19... Ne5 {[%clk 0:01:05]} 20. Nb5 {[%clk 0:01:31.5]} 20... Qe7
{[%clk 0:01:03.2]} 21. Bf1 {[%clk 0:01:28]} 21... Nh5 {[%clk 0:00:58]} 22. Qe3
{[%clk 0:01:20.1]} 22... Qf6 {[%clk 0:00:55.7]} 23. Qxb6 {[%clk 0:01:16.4]}
23... Bc6 {[%clk 0:00:48]} 24. Qe3 {[%clk 0:00:33.1]} 24... Ra2 {[%clk 0:00:43]}
25. Nd4 {[%clk 0:00:27.6]} 25... Bb7 {[%clk 0:00:38.8]} 26. Ra1 {[%clk
0:00:27.3]} 26... Rda8 {[%clk 0:00:38.4]} 27. Rxa2 {[%clk 0:00:27.2]} 27... Rxa2
{[%clk 0:00:39.3]} 28. N2f3 {[%clk 0:00:24.8]} 28... g6 {[%clk 0:00:36.1]} 29.
Qb3 {[%clk 0:00:14.3]} 29... Nxf3+ {[%clk 0:00:31.4]} 30. Nxf3 {[%clk
0:00:13.9]} 30... Rb2 {[%clk 0:00:31.3]} 31. Qa3 {[%clk 0:00:14.2]} 31... Kg7
{[%clk 0:00:27.3]} 32. Re2 {[%clk 0:00:11]} 32... Rb1 {[%clk 0:00:25.7]} 33. b5
{[%clk 0:00:07.7]} 33... Nf4 {[%clk 0:00:24.3]} 34. Re1 {[%clk 0:00:06.3]} 34...
Rxe1 {[%clk 0:00:20.7]} 35. Nxe1 {[%clk 0:00:06.1]} 35... Bxe4 {[%clk
0:00:20.2]} 36. Qe3 {[%clk 0:00:05.7]} 36... d5 {[%clk 0:00:17.3]} 37. c5 {[%clk
0:00:05]} 37... Qf5 {[%clk 0:00:10.8]} 38. c6 {[%clk 0:00:04.5]} 38... d4 {[%clk
0:00:09.7]} 39. Qxd4+ {[%clk 0:00:02.2]} 39... e5 {[%clk 0:00:10.6]} 40. Qe3
{[%clk 0:00:02.1]} 40... Nd5 {[%clk 0:00:10.3]} 41. Qg3 {[%clk 0:00:03]} 41...
h5 {[%clk 0:00:09.8]} 42. b6 {[%clk 0:00:03.9]} 42... Nxb6 {[%clk 0:00:09.2]}
43. c7 {[%clk 0:00:03.6]} 43... Bb7 {[%clk 0:00:09]} 44. Nf3 {[%clk 0:00:03.9]}
44... Bxf3 {[%clk 0:00:08.1]} 45. Qxf3 {[%clk 0:00:04.2]} 45... Qd7 {[%clk
0:00:07.2]} 46. Qc3 {[%clk 0:00:03.9]} 46... f6 {[%clk 0:00:04.2]} 47. Ba6
{[%clk 0:00:04.2]} 47... Nc8 {[%clk 0:00:03.8]} 48. Bxc8 {[%clk 0:00:04.1]}
48... Qxc8 {[%clk 0:00:04.7]} 49. Qc6 {[%clk 0:00:04.3]} 49... e4 {[%clk
0:00:03.3]} 50. Qd6 {[%clk 0:00:04.6]} 50... Qb7 {[%clk 0:00:02.1]} 51. Qd8
{[%clk 0:00:04.4]} 51... Qb1+ {[%clk 0:00:01.9]} 52. Kh2 {[%clk 0:00:04.7]}
52... Qc1 {[%clk 0:00:02.8]} 53. c8=Q {[%clk 0:00:04.1]} 53... Qf4+ {[%clk
0:00:03.7]} 54. Kg1 {[%clk 0:00:03.9]} 54... Qc1+ {[%clk 0:00:04.3]} 55. Qxc1
{[%clk 0:00:03.7]} 1-0